Cogmind - Beta 10.2 @@@ ROGUE MODE // 2021.08.31 @ 21:05:34 Player: cavemonk Result: Destroyed by Z-Imprinter with Zionite Laser-M Performance ------------- Evolutions (4) 2000 Regions Visited (15) 3000 Robots Destroyed (11) 55 Value Destroyed (202) 202 Prototype IDs (244) 4880 Alien Tech Used (1) 200 Bonus (3569) 3569 TOTAL SCORE: 13906 Bonus ------- Aligned with FarCom 300 Met Data Miner 300 Used Data Conduit 3000 Friendly Fire -31 Cogmind --------- Core Integrity 0/850 Matter 300/300 Energy 36/100 System Corruption 0% Temperature Cool (9) Movement Core (50) Location -6/Deep Caves Parts ------- > --- POWER (1) -------- (None) > --- PROPULSION (6) --- (None) > --- UTILITY (7) ------ Makeshift System Shield > --- WEAPON (2) ------- (None) > --- INVENTORY (4) ---- Zionite Light DM Reactor Zionite Light DM Reactor Peak State ------------ > --- POWER ------------ Light Fission Core > --- PROPULSION ------- Cooled Airjet Improved VTOL Module Improved Cesium-ion Thruster Improved Cesium-ion Thruster > --- UTILITY ---------- Experimental Sensor Array Advanced Signal Interpreter 0b10 Decoder Chip [Generic] Improved Maneuvering Thrusters Advanced Hacking Suite System Mapper Makeshift System Shield > --- WEAPON ----------- Firepult > --- INVENTORY -------- Improved Proton Missile Launcher Power Maul [Rating: 82] Favorites ----------- Power Light Fission Core Engine Heavy Ion Engine Power Core Light Fission Core Reactor Light Antimatter Reactor Propulsion Improved Cesium-ion Thruster Treads Light Treads Leg Aluminum Leg Hover Unit Cooled Airjet Flight Unit Improved Cesium-ion Thruster Utility Advanced Signal Interpreter Device Experimental Sensor Array Storage Small Storage Unit Processor Advanced Signal Interpreter Hackware Makeshift System Shield Protection Medium Insulated Plating Weapon Power Maul Energy Gun Medium Laser Energy Cannon Cooled Plasma Cannon Ballistic Gun Flak Gun Launcher Improved Proton Missile Launcher Impact Weapon Power Maul Piercing Weapon Spear Build | -11 -10 -10 -10 -9 -8 -7 -7 -7 -7 -6 -6 -6 -6 -6 -6 ------- Run | Scr Mat Min Exi Min Mat Fac Low Low Dat Pro Fac Low Low Zio Dee Slots Evolved 8 | . . . . . 4 2 . . . . 2 . . . . Power . | . . . . . . . . . . . . . . . . Propulsion 3 | . . . . . 2 1 . . . . . . . . . Utility 5 | . . . . . 2 1 . . . . 2 . . . . Weapon . | . . . . . . . . . . . . . . . . Parts Attached 61 | 3 1 4 2 . 4 15 . 1 3 3 8 . 1 1 15 Power 11 | 1 . . . . 1 2 . . . 2 2 . . . 3 Engine 6 | 1 . . . . 1 2 . . . 1 1 . . . . Core 2 | . . . . . . . . . . . 1 . . . 1 Reactor 3 | . . . . . . . . . . 1 . . . . 2 Propulsion 8 | 2 . . 1 . . 3 . . . . 1 . . . 1 Treads 3 | 2 . . 1 . . . . . . . . . . . . Leg . | . . . . . . . . . . . . . . . . Wheel . | . . . . . . . . . . . . . . . . Hover 2 | . . . . . . . . . . . 1 . . . 1 Flight 3 | . . . . . . 3 . . . . . . . . . Utility 25 | . . 2 1 . 2 8 . 1 3 1 3 . 1 1 2 Device 11 | . . 1 . . 1 2 . . 1 1 2 . . 1 2 Storage . | . . . . . . . . . . . . . . . . Processor 5 | . . . . . 1 3 . . . . . . 1 . . Hackware 6 | . . . 1 . . 1 . 1 2 . 1 . . . . Protection 3 | . . 1 . . . 2 . . . . . . . . . Artifact . | . . . . . . . . . . . . . . . . Weapon 17 | . 1 2 . . 1 2 . . . . 2 . . . 9 Energy Gun . | . . . . . . . . . . . . . . . . Energy Cannon 6 | . 1 . . . . . . . . . 1 . . . 4 Ballistic Gun 1 | . . . . . . 1 . . . . . . . . . Ballistic Cannon . | . . . . . . . . . . . . . . . . Launcher 6 | . . 2 . . . . . . . . 1 . . . 3 Special Weapon . | . . . . . . . . . . . . . . . . Impact Weapon 3 | . . . . . . 1 . . . . . . . . 2 Slashing Weapon . | . . . . . . . . . . . . . . . . Piercing Weapon 1 | . . . . . 1 . . . . . . . . . . Special Melee Weapon . | . . . . . . . . . . . . . . . . Unidentified Prototypes 8 | . . . . . . 3 . . 2 . . 1 . . 2 Parts Lost 26 | . . . . . 4 . . . . 3 1 . . . 18 Power 3 | . . . . . . . . . . 1 . . . . 2 Propulsion 7 | . . . . . 2 . . . . . . . . . 5 Utility 12 | . . . . . 2 . . . . 1 1 . . . 8 Weapon 4 | . . . . . . . . . . 1 . . . . 3 Highest Loss Streak 17 | . . . . . 4 . . . . 3 1 . . . 17 Average Slot Usage (%) 66 | . 38 54 44 42 33 70 84 84 82 74 79 85 86 87 72 Engine 1 | . 6 . . . . 5 7 7 7 5 2 . . . . Core 1 | . . . . . . . . . . . . 6 6 6 4 Treads 9 | . 28 28 28 28 14 . . . . . . . . . . Hover 2 | . . . . . . . . . . . 5 6 6 6 4 Flight 12 | . . . . . . 18 23 23 23 23 20 19 18 18 15 Device 7 | . . 10 2 . . 4 7 7 4 3 9 12 12 12 10 Processor 6 | . . . . . 6 14 15 9 7 7 6 6 11 12 9 Hackware 12 | . . . 11 14 9 6 7 12 17 23 20 19 18 18 16 Protection 2 | . . 10 2 . . 3 7 7 7 . . . . . . Energy Cannon 2 | . 4 3 . . . . . . . . 3 6 6 6 3 Impact Weapon 3 | . . . . . . 5 7 7 7 7 6 6 6 6 2 Piercing Weapon 1 | . . . . . 2 7 7 7 7 2 . . . . . Naked Turns . | . . . . . . . . . . . . . . . . Heaviest Build 22 | 5 5 7 3 . 3 21 20 20 21 20 22 20 20 21 21 Greatest Support 40 | 40 40 3 20 3 3 22 20 20 28 22 22 22 22 22 22 Greatest Overweight (x) 2 | . 1 2 . . . 1 . . . . . . . . 1 Average Overweight (x) . | . . . . . . . . . . . . . . . . Largest Inventory Capacity 6 | 6 4 4 4 4 4 4 4 4 4 4 4 4 4 4 4 Average Capacity 4 | 4 4 4 4 4 4 4 4 4 4 4 4 4 4 4 4 Most Carried 6 | 6 4 4 4 4 4 4 4 4 4 4 4 4 4 4 4 Average Carried 3 | 1 3 3 3 4 4 4 4 4 3 3 3 4 4 4 3 Final Capacity 4 | 4 4 4 4 4 4 4 4 4 4 4 4 4 4 4 4 Final Carried 4 | 1 4 4 4 4 4 4 4 4 3 4 4 4 4 4 2 Class Distribution -------------------- 45% | Hacker-Sprinter 42% | Mutant 9% | Sprinter Dominant Class ---------------- Mutant | -10/Materials Mutant | -10/Mines Mutant | -10/Exiles Mutant | -9/Mines Mutant | -8/Materials Sprinter | -7/Factory Sprinter | -7/Lower Caves Hacker-Sprinter | -7/Lower Caves Hacker-Sprinter | -7/Data Miner Hacker-Sprinter | -6/Proximity Caves Hacker-Sprinter | -6/Factory Hacker-Sprinter | -6/Lower Caves Hacker-Sprinter | -6/Lower Caves Hacker-Sprinter | -6/Zion Hacker-Sprinter | -6/Deep Caves Resources | -11 -10 -10 -10 -9 -8 -7 -7 -7 -7 -6 -6 -6 -6 -6 -6 ----------- Run | Scr Mat Min Exi Min Mat Fac Low Low Dat Pro Fac Low Low Zio Dee Matter Collected 798 | 150 28 155 . 18 . 131 . . 24 50 . 27 32 27 156 Remotely 101 | . . 101 . . . . . . . . . . . . . Salvage Created 424 | . 28 25 . . . 173 . . 24 24 . . . . 150 Parts 27 | . 2 5 . . . 6 . . 3 3 . . . . 8 Haulers Intercepted 2 | . . . . . . 2 . . . . . . . . . Recyclers Shooed . | . . . . . . . . . . . . . . . . Parts Field Recycled . | . . . . . . . . . . . . . . . . Retrieved Matter . | . . . . . . . . . . . . . . . . Parts Self-Destructed 2 | . . . . . . . . . . 2 . . . . . Prevented 1 | . . . . . . . . . . 1 . . . . . Kills | -11 -10 -10 -10 -9 -8 -7 -7 -7 -7 -6 -6 -6 -6 -6 -6 ------- Run | Scr Mat Min Exi Min Mat Fac Low Low Dat Pro Fac Low Low Zio Dee Combat Hostiles Destroyed 9 | . 1 4 . . . . . . . . . . . . 4 Melee 1 | . 1 . . . . . . . . . . . . . . AOE 8 | . . 4 . . . . . . . . . . . . 4 Classes Destroyed 8 | . 1 2 . . . 3 . . . 1 . . . . 1 Builder 1 | . . . . . . 1 . . . . . . . . . Hauler 2 | . . . . . . 2 . . . . . . . . . Recycler 1 | . . . . . . 1 . . . . . . . . . Minesweeper 1 | . . . . . . . . . . 1 . . . . . Swarmer 2 | . . 2 . . . . . . . . . . . . . Grunt 1 | . 1 . . . . . . . . . . . . . . Z-Light 2 | . . . . . . . . . . . . . . . 2 Assembled 4 | . . 2 . . . . . . . . . . . . 2 Best Kill Streak 2 | . 1 2 . . . 1 . . 1 1 . . . . 2 Combat Bots Only 2 | . 1 2 . . . . . . . . . . . . 2 Max Kills in Single Turn 2 | . 1 2 . . . 1 . . 1 1 . . . . 1 Gunslinging . | . . . . . . . . . . . . . . . . Exploded 2 | . . 2 . . . . . . . . . . . . 1 Melee 1 | . 1 . . . . . . . . . . . . . . Uniques/NPCs Destroyed 1 | . . . . . . . . . 1 . . . . . . Data Miner (-7/Data Miner) Combat | -11 -10 -10 -10 -9 -8 -7 -7 -7 -7 -6 -6 -6 -6 -6 -6 -------- Run | Scr Mat Min Exi Min Mat Fac Low Low Dat Pro Fac Low Low Zio Dee Damage Taken 3932 | . 154 184 . . 667 220 10 22 191 224 42 . . . 2218 Core 1591 | . 29 54 . . 368 113 10 . 43 110 42 . . . 822 Absorbed by Shields . | . . . . . . . . . . . . . . . . Core Remaining (%) 64 | 100 . . . 66 33 . . . . 60 . . . . . Volleys Fired 51 | . . 6 . . . 1 . . . . 5 14 9 4 12 Largest 1 | . . 1 . . . 1 . . . . 1 1 1 1 1 Hottest 250 | . . 33 . . . 28 . . . . 35 35 35 105 250 Shots Fired 51 | . . 6 . . . 1 . . . . 5 14 9 4 12 Gun 1 | . . . . . . 1 . . . . . . . . . Cannon 37 | . . . . . . . . . . . 5 14 9 4 5 Launcher 13 | . . 6 . . . . . . . . . . . . 7 Special . | . . . . . . . . . . . . . . . . Kinetic 1 | . . . . . . 1 . . . . . . . . . Thermal 37 | . . . . . . . . . . . 5 14 9 4 5 Explosive 6 | . . 6 . . . . . . . . . . . . . Electromagnetic 7 | . . . . . . . . . . . . . . . 7 Robot Hit Streak 3 | . . 2 . . . 3 . . . . . . . . 3 Robot Miss Streak 7 | . . 1 . . . 3 . . . . . . . . 7 Penetration Max . | . . . . . . . . . . . . . . . . Secondary Targets . | . . . . . . . . . . . . . . . . Shots Hit Robots 20 | . . 2 . . . 7 . . 1 1 . . . . 9 Core Hits 25 | . 1 5 . . . 2 . . 1 1 . . . . 15 Critical Hits . | . . . . . . . . . . . . . . . . Critical Kills . | . . . . . . . . . . . . . . . . Critical Parts Destroyed . | . . . . . . . . . . . . . . . . Melee Attacks 42 | . . . . . 1 18 . . 7 1 9 . . . 6 Impact 27 | . . . . . . 9 . . 2 1 9 . . . 6 Slashing . | . . . . . . . . . . . . . . . . Piercing 15 | . . . . . 1 9 . . 5 . . . . . . Sneak Attacks 6 | . . . . . . 4 . . 1 1 . . . . . Combat Hostiles . | . . . . . . . . . . . . . . . . Follow-up Attacks 2 | . . . . . . 2 . . . . . . . . . Damage Inflicted 1738 | . 7 235 . . 6 540 . . 114 72 . . . . 764 Guns 19 | . . . . . . 19 . . . . . . . . . Cannons 310 | . . . . . . . . . . . . . . . 310 Explosions 609 | . . 235 . . . . . . . . . . . . 374 Melee 787 | . . . . . . 521 . . 114 72 . . . . 80 Ramming 13 | . 7 . . . 6 . . . . . . . . . . Kinetic 19 | . . . . . . 19 . . . . . . . . . Thermal 471 | . . . . . . . . . . . . . . . 471 Explosive 235 | . . 235 . . . . . . . . . . . . . Electromagnetic 213 | . . . . . . . . . . . . . . . 213 Impact 404 | . . . . . . 252 . . . 72 . . . . 80 Slashing . | . . . . . . . . . . . . . . . . Piercing 383 | . . . . . . 269 . . 114 . . . . . . Highest Corruption . | . . . . . . . . . . . . . . . . Average Corruption . | . . . . . . . . . . . . . . . . Corruption Purged . | . . . . . . . . . . . . . . . . Overload Shots 4 | . . . . . . . . . . . . . . 4 . Overflow Damage 198 | . . . . . . 191 . . . . . . . . 7 Projectiles 7 | . . . . . . . . . . . . . . . 7 Explosions . | . . . . . . . . . . . . . . . . Melee 191 | . . . . . . 191 . . . . . . . . . Knockbacks 2 | . . . . . . . . . . . . . . . 2 Impact 2 | . . . . . . . . . . . . . . . 2 Kinetic . | . . . . . . . . . . . . . . . . Secondary . | . . . . . . . . . . . . . . . . Self-Inflicted Damage 168 | . . 13 . . 3 . . . . . . . . . 152 Shots 9 | . . 1 . . . . . . . . . . . . 8 Rammed 7 | . 5 . . 1 1 . . . . . . . . . . Targets Rammed 8 | . 6 . . 1 1 . . . . . . . . . . Kicked . | . . . . . . . . . . . . . . . . Crushed 1 | . 1 . . . . . . . . . . . . . . Highest Temperature 618 | . . . . . . . . . 1 7 1 . . 227 618 Average Temperature 217 | . . . . . . . . . 1 7 1 . . 117 281 Received Heat Transfer 948 | . 60 . . . 198 54 . . 24 54 9 . . . 549 Effects 9 | . . . . . . . . . . . . . . . 9 Shutdowns 1 | . . . . . . . . . . . . . . . 1 Energy Bleed 1 | . . . . . . . . . . . . . . . 1 Short Circuit 3 | . . . . . . . . . . . . . . . 3 Damage (minor) 2 | . . . . . . . . . . . . . . . 2 Damage (major) 2 | . . . . . . . . . . . . . . . 2 Siege Activations . | . . . . . . . . . . . . . . . . Robots Corrupted . | . . . . . . . . . . . . . . . . Combat Hostiles . | . . . . . . . . . . . . . . . . Parts Fried 2 | . . . . . . 2 . . . . . . . . . Impact Corruptions 4 | . . . . . . 4 . . . . . . . . . Robots Melted . | . . . . . . . . . . . . . . . . Combat Hostiles . | . . . . . . . . . . . . . . . . Parts Melted . | . . . . . . . . . . . . . . . . Heat Transferred 640 | . . . . . . . . . . . . . . . 640 Parts Sabotaged . | . . . . . . . . . . . . . . . . Parts Stolen . | . . . . . . . . . . . . . . . . Parts Stripped . | . . . . . . . . . . . . . . . . Power Chain Reactions 4 | . . . . . . . . . . . 4 . . . . Missiles Intercepted . | . . . . . . . . . . . . . . . . Alert | -11 -10 -10 -10 -9 -8 -7 -7 -7 -7 -6 -6 -6 -6 -6 -6 ------- Run | Scr Mat Min Exi Min Mat Fac Low Low Dat Pro Fac Low Low Zio Dee Peak Influence 636 | . 95 86 . 6 56 636 . . . . 221 . . . . Initial 50 | . . 36 . . 1 16 . . . . 50 . . . . Average 69 | . 48 50 . 5 26 132 . . . . 84 . . . . Maximum Alert Level 2 | . . . . . . 2 . . . . 1 . . . . Low Security (%) 94 | 100 100 100 . 100 100 78 . . . . 98 . . . . Level 1 3 | . . . . . . 12 . . . . 1 . . . . Level 2 2 | . . . . . . 9 . . . . . . . . . Level 3 . | . . . . . . . . . . . . . . . . Level 4 . | . . . . . . . . . . . . . . . . Level 5 . | . . . . . . . . . . . . . . . . High Security . | . . . . . . . . . . . . . . . . Max Security . | . . . . . . . . . . . . . . . . Squads Dispatched 13 | . 2 . . . 2 4 . . . . 5 . . . . Investigation 6 | . 1 . . . 1 1 . . . . 3 . . . . Extermination 1 | . . . . . . 1 . . . . . . . . . Reinforcement 5 | . 1 . . . 1 1 . . . . 2 . . . . Assault . | . . . . . . . . . . . . . . . . Garrison 1 | . . . . . . 1 . . . . . . . . . Intercept . | . . . . . . . . . . . . . . . . Construction Impeded . | . . . . . . . . . . . . . . . . Haulers Reinforced 1 | . . . . . . 1 . . . . . . . . . Stealth | -11 -10 -10 -10 -9 -8 -7 -7 -7 -7 -6 -6 -6 -6 -6 -6 --------- Run | Scr Mat Min Exi Min Mat Fac Low Low Dat Pro Fac Low Low Zio Dee Distress Signals 6 | . . 1 . . 1 2 . . . . 2 . . . . Communications Jammed . | . . . . . . . . . . . . . . . . Distress Signals . | . . . . . . . . . . . . . . . . Times Spotted 93 | . 12 10 . . 14 14 6 5 4 6 10 2 4 . 6 Peak Tracking Total 12 | . 10 5 . . 12 7 4 5 4 9 12 1 4 . 3 Tactical Retreats 15 | . 1 1 . . 1 6 1 . . 1 2 1 . . 1 Traps | -11 -10 -10 -10 -9 -8 -7 -7 -7 -7 -6 -6 -6 -6 -6 -6 ------- Run | Scr Mat Min Exi Min Mat Fac Low Low Dat Pro Fac Low Low Zio Dee Traps Triggered . | . . . . . . . . . . . . . . . . Indirectly . | . . . . . . . . . . . . . . . . Trap Hack Attempts . | . . . . . . . . . . . . . . . . Triggered . | . . . . . . . . . . . . . . . . Disarmed . | . . . . . . . . . . . . . . . . Reprogrammed . | . . . . . . . . . . . . . . . . Reused . | . . . . . . . . . . . . . . . . Traps Extracted . | . . . . . . . . . . . . . . . . Installed 4 | . . . . . . . . . . 4 . . . . . Triggered 2 | . . . . . . . . . . 1 . . 1 . . Machines | -11 -10 -10 -10 -9 -8 -7 -7 -7 -7 -6 -6 -6 -6 -6 -6 ---------- Run | Scr Mat Min Exi Min Mat Fac Low Low Dat Pro Fac Low Low Zio Dee Machines Disabled 5 | . . . . . . 1 . . . . . . . 3 1 Max in Single Turn 1 | . . . . . . 1 . . . . . . . 1 1 Garrison Access 1 | . . . . . . . . . . . 1 . . . . Machines Sabotaged . | . . . . . . . . . . . . . . . . Garrisons Compromised . | . . . . . . . . . . . . . . . . Overloaded Fab Kills 5 | . . . . . . . . . . . 5 . . . . Fab Network Shutdowns 1 | . . . . . . 1 . . . . . . . . . Hacking | -11 -10 -10 -10 -9 -8 -7 -7 -7 -7 -6 -6 -6 -6 -6 -6 --------- Run | Scr Mat Min Exi Min Mat Fac Low Low Dat Pro Fac Low Low Zio Dee Machines Accessed 27 | . 1 1 1 1 1 11 . . 2 . 9 . . . . Terminals 15 | . . . . 1 1 8 . . . . 5 . . . . Fabricators 4 | . . . . . . 1 . . . . 3 . . . . Repair Stations 1 | . . . . . . 1 . . . . . . . . . Recycling Units 1 | . 1 . . . . . . . . . . . . . . Scanalyzers . | . . . . . . . . . . . . . . . . Garrison Access 2 | . . . . . . 1 . . . . 1 . . . . Total Hacks 87 | . 2 1 1 3 3 25 . . 20 . 32 . . . . Successful 51 | . 1 1 1 1 . 7 . . 20 . 20 . . . . Failed 35 | . 1 . . 2 3 18 . . . . 11 . . . . Catastrophic 11 | . . . . . 2 7 . . . . 2 . . . . Database Lockouts 1 | . . . . . . . . . . . 1 . . . . Manual 40 | . 2 . 1 3 3 13 . . . . 18 . . . . Terminals 46 | . . . . 3 3 20 . . . . 20 . . . . Fabricators 13 | . . . . . . 2 . . . . 11 . . . . Repair Stations 2 | . . . . . . 2 . . . . . . . . . Recycling Units 2 | . 2 . . . . . . . . . . . . . . Scanalyzers . | . . . . . . . . . . . . . . . . Garrison Access 2 | . . . . . . 1 . . . . 1 . . . . Terminal Hacks 38 | . . 1 1 1 . 4 . . 20 . 11 . . . . Part Schematic 16 | . . . . 1 . 1 . . 12 . 2 . . . . Robot Schematic 5 | . . . . . . . . . 5 . . . . . . Prototype ID Bank 3 | . . . . . . . . . 3 . . . . . . Open Door 1 | . . 1 . . . . . . . . . . . . . Branch Access Points 2 | . . . . . . 1 . . . . 1 . . . . Emergency Access Points 1 | . . . . . . . . . . . 1 . . . . Machine Index 1 | . . . . . . . . . . . 1 . . . . Terminal Index 1 | . . . . . . 1 . . . . . . . . . Unreport Threat 4 | . . . . . . 1 . . . . 3 . . . . Reprogram Traps 1 | . . . . . . . . . . . 1 . . . . Recall Investigation 1 | . . . . . . . . . . . 1 . . . . Recall Extermination 1 | . . . . . . . . . . . 1 . . . . EX-Prototype ID Bank 1 | . . . 1 . . . . . . . . . . . . Fabricator Hacks 7 | . . . . . . 2 . . . . 5 . . . . Load Schematic 4 | . . . . . . 1 . . . . 3 . . . . Build 3 | . . . . . . 1 . . . . 2 . . . . Repair Station Hacks . | . . . . . . . . . . . . . . . . Recycling Unit Hacks . | . . . . . . . . . . . . . . . . Scanalyzer . | . . . . . . . . . . . . . . . . Garrison Access Hacks 1 | . . . . . . . . . . . 1 . . . . Seal Access 1 | . . . . . . . . . . . 1 . . . . Unauthorized Hacks 5 | . 1 . . . . 1 . . . . 3 . . . . Terminals 3 | . . . . . . 1 . . . . 2 . . . . Assimilate 2 | . . . . . . 1 . . . . 1 . . . . Disrupt 1 | . . . . . . . . . . . 1 . . . . Fabricators 1 | . . . . . . . . . . . 1 . . . . Overload 1 | . . . . . . . . . . . 1 . . . . Repair Stations . | . . . . . . . . . . . . . . . . Recycling Units 1 | . 1 . . . . . . . . . . . . . . Tunnel 1 | . 1 . . . . . . . . . . . . . . Scanalyzers . | . . . . . . . . . . . . . . . . Garrison Access . | . . . . . . . . . . . . . . . . Data Cores Recovered . | . . . . . . . . . . . . . . . . Used . | . . . . . . . . . . . . . . . . Hacking Detections 20 | . . . . 1 1 10 . . . . 8 . . . . Full Trace Events 4 | . . . . . 1 1 . . . . 2 . . . . Feedback Events 1 | . . . . . . . . . . . 1 . . . . Hackware Fried 1 | . . . . . . . . . . . 1 . . . . Feedback Blocked . | . . . . . . . . . . . . . . . . Robot Schematics Acquired 5 | . . . . . . . . . 5 . . . . . . Robots Built . | . . . . . . . . . . . . . . . . Matter . | . . . . . . . . . . . . . . . . Time . | . . . . . . . . . . . . . . . . Total Robot Build Rating . | . . . . . . . . . . . . . . . . Part Schematics Acquired 16 | . . . . 1 . 1 . . 12 . 2 . . . . Parts Built 2 | . . . . . . . . . . . 2 . . . . Matter 599 | . . . . . . 102 . . . . 497 . . . . Time 154 | . . . . . . 51 . . . . 103 . . . . Total Part Build Rating 11 | . . . . . . . . . . . 11 . . . . Parts Repaired . | . . . . . . . . . . . . . . . . Time . | . . . . . . . . . . . . . . . . Parts Recycled . | . . . . . . . . . . . . . . . . Recycled Matter . | . . . . . . . . . . . . . . . . Retrieved Matter . | . . . . . . . . . . . . . . . . Retrieved Components . | . . . . . . . . . . . . . . . . Parts Scanalyzed . | . . . . . . . . . . . . . . . . Part Schematics Acquired . | . . . . . . . . . . . . . . . . Parts Damaged . | . . . . . . . . . . . . . . . . Bothacking | -11 -10 -10 -10 -9 -8 -7 -7 -7 -7 -6 -6 -6 -6 -6 -6 ------------ Run | Scr Mat Min Exi Min Mat Fac Low Low Dat Pro Fac Low Low Zio Dee Used RIF Installer . | . . . . . . . . . . . . . . . . Robots Hacked . | . . . . . . . . . . . . . . . . Non-combat . | . . . . . . . . . . . . . . . . Combat . | . . . . . . . . . . . . . . . . Robot Hacks Applied . | . . . . . . . . . . . . . . . . Relay Couplers Released . | . . . . . . . . . . . . . . . . Robots Rewired . | . . . . . . . . . . . . . . . . Allies Hacked . | . . . . . . . . . . . . . . . . Hacks Repelled . | . . . . . . . . . . . . . . . . Allies | -11 -10 -10 -10 -9 -8 -7 -7 -7 -7 -6 -6 -6 -6 -6 -6 -------- Run | Scr Mat Min Exi Min Mat Fac Low Low Dat Pro Fac Low Low Zio Dee Total Allies 7 | . . . . . . 1 . . . . 1 . . 5 . Largest Group 5 | . . . . . . 1 . . . . 1 1 . 5 5 Highest-Rated Group 135 | . . . . . . 10 . . . . 10 10 . 135 135 Highest-Rated Ally 31 | . . . . . . 10 . . . . 10 10 . 31 31 Total Orders . | . . . . . . . . . . . . . . . . Ally Attacks 15 | . . . . . . . . . . . . . . . 15 Total Damage 243 | . . . . . . . . . . . . . . . 243 Kills 1 | . . . . . . . . . . . . . . . 1 Allies Corrupted . | . . . . . . . . . . . . . . . . Allies Melted . | . . . . . . . . . . . . . . . . Intel | -11 -10 -10 -10 -9 -8 -7 -7 -7 -7 -6 -6 -6 -6 -6 -6 ------- Run | Scr Mat Min Exi Min Mat Fac Low Low Dat Pro Fac Low Low Zio Dee Robot Analysis Total 115 | . . . . . . . . . 115 . . . . . . Derelict Logs Recovered 5 | . . . . 1 . . . 1 . . . . 3 . . Drone Launches . | . . . . . . . . . . . . . . . . Drone Recoveries . | . . . . . . . . . . . . . . . . Exploration | -11 -10 -10 -10 -9 -8 -7 -7 -7 -7 -6 -6 -6 -6 -6 -6 ------------- Run | Scr Mat Min Exi Min Mat Fac Low Low Dat Pro Fac Low Low Zio Dee Turns Passed 2933 | 9 130 231 382 192 121 328 82 64 72 97 263 148 168 360 286 Spaces Moved 5155 | 3 167 414 327 379 222 598 255 191 128 227 537 266 475 650 316 Core 1426 | . 156 414 134 379 222 76 . . . . . . . . 45 Treads 207 | 3 11 . 193 . . . . . . . . . . . . Legs . | . . . . . . . . . . . . . . . . Wheels . | . . . . . . . . . . . . . . . . Hover 4 | . . . . . . . . . . . . . . . 4 Flight 3518 | . . . . . . 522 255 191 128 227 537 266 475 650 267 Fastest Speed 29 | 160 50 50 50 50 50 29 32 32 29 29 29 29 29 29 29 Average Speed 41 | 160 68 50 114 50 50 37 32 32 30 30 29 29 29 29 33 Slowest Speed 160 | 160 160 150 160 50 50 100 32 32 32 35 29 29 29 29 100 Overloaded Moves . | . . . . . . . . . . . . . . . . Propulsion Burnouts . | . . . . . . . . . . . . . . . . Robots Hopped 21 | . . . . . . 5 2 . 1 6 7 . . . . Cave-ins Triggered . | . . . . . . . . . . . . . . . . Exploration Rate (%) 46 | 2 34 71 62 87 25 22 47 43 77 44 18 51 66 70 25 Regions Visited 15 Branch Regions 11 Pre-discovered Areas 25 | . 1 . . . . . . . 23 . . . 1 . . Known Exits Taken 9 | . . . . . . 1 1 1 1 1 1 1 1 1 . Unknown Exits Taken 6 | 1 1 1 1 1 1 . . . . . . . . . . Scrap Searched 10 | . . . . 1 . . 1 2 . 1 . 1 2 2 . Spaces Dug 41 | . . . . . . 6 . . . . 11 14 9 1 . Terrain Destroyed 103 | . . 60 . . . 6 . . . . 11 14 9 1 2 Melee 12 | . . . . . . 6 . . . . 6 . . . . Projectile 29 | . . . . . . . . . . . 5 14 9 1 . AOE 62 | . . 60 . . . . . . . . . . . . 2 Terrain Rammed . | . . . . . . . . . . . . . . . . Walls Destroyed . | . . . . . . . . . . . . . . . . Machines Disabled . | . . . . . . . . . . . . . . . . Actions | -11 -10 -10 -10 -9 -8 -7 -7 -7 -7 -6 -6 -6 -6 -6 -6 --------- Run | Scr Mat Min Exi Min Mat Fac Low Low Dat Pro Fac Low Low Zio Dee Total 5792 | 8 178 431 336 380 228 666 252 193 151 246 618 321 495 816 473 Wait 454 | 1 . . . 1 . 36 . 1 14 16 59 41 11 161 113 Move 5104 | 2 166 413 326 378 221 588 250 190 125 217 524 265 474 649 316 Hop 15 | . . . . . . 4 2 . 1 3 5 . . . . Pick Up 16 | 1 4 2 3 . . . . . . 1 2 . . . 3 Fast Attach 44 | . . 3 . . 4 15 . 1 2 3 7 1 1 1 6 Attach 16 | 3 1 1 2 . . . . . 1 . 1 . . . 7 Detach 6 | . . 2 . . . . . . . . 1 . . . 3 Swap 2 | . . . . . . . . . . . . . . . 2 Drop 34 | 1 1 4 5 . 1 6 . 1 3 1 5 . . 1 5 Fire 51 | . . 6 . . . 1 . . . . 5 14 9 4 12 Melee 38 | . . . . . 1 16 . . 5 1 9 . . . 6 Ram 2 | . . . . 1 1 . . . . . . . . . . Kick . | . . . . . . . . . . . . . . . . Crush 6 | . 6 . . . . . . . . . . . . . . Escape Stasis . | . . . . . . . . . . . . . . . . Rewire . | . . . . . . . . . . . . . . . . Trap 4 | . . . . . . . . . . 4 . . . . . Miscellaneous . | . . . . . . . . . . . . . . . . Route ------- -11/Scrapyard -10/Materials (discovered 2 exits: [*Mat] / *Min) -10/Mines -10/Exiles -9/Mines -8/Materials -7/Factory (discovered 2 exits: *Low x2) -7/Lower Caves -7/Lower Caves -7/Data Miner -6/Proximity Caves -6/Factory (discovered 2 exits: *Low x2) -6/Lower Caves (discovered 2 exits: *Low / *Zio) -6/Lower Caves -6/Zion -6/Deep Caves History --------- Turn | Location | Event 2 | -11/Scrapyard | Released all parts (6) 6 | -11/Scrapyard | Discovered new exit (range 2) 10 | -11/Scrapyard | Entered Materials 96 | -10/Materials | Discovered new exit (range 13) 134 | -10/Materials | Discovered new exit (range 9) 140 | -10/Materials | Entered Mines 187 | -10/Mines | Met a Derelict who couldn't figure out how to use a Trap Extractor 267 | -10/Mines | Assembled infested the area 272 | -10/Mines | Assisted by a Guerilla fighting off Assembled 296 | -10/Mines | Received a Rocket Launcher from a helpful Derelict 326 | -10/Mines | Build established: Mutant 369 | -10/Mines | Deemed a non-threat by the Exiles lab entrance 369 | -10/Mines | Discovered new exit (range 5) 371 | -10/Mines | Entered Exiles 385 | -10/Exiles | Met 8R-AWN 401 | -10/Exiles | Met EX-HEX 415 | -10/Exiles | Met EX-BIN 421 | -10/Exiles | Aligned with FarCom system 422 | -10/Exiles | Given EX-Vault access code 436 | -10/Exiles | Opened EX-Vault 442 | -10/Exiles | Found Firepult 450 | -10/Exiles | Found Chronowheel 494 | -10/Exiles | Warned to stay clear of 0b10 Research branches 591 | -10/Exiles | Found Supersonic Drone Bay 667 | -10/Exiles | Met EX-DEC 732 | -10/Exiles | Discovered new exit (range 14) 753 | -10/Exiles | Stole three prototypes: Supersonic Drone Bay, Chronowheel, Firepult 753 | -10/Exiles | Entered Mines 758 | -9/Mines | Learned Materials terminal intel 942 | -9/Mines | Discovered new exit (range 4) 945 | -9/Mines | Entered Materials 945 | -8/Materials | Evolved 4 slots: Propulsion x2, Utility x2 946 | -8/Materials | Loaded intel: 12 terminal locations 1045 | -8/Materials | Discovered new exit (range 11) 1064 | -8/Materials | Core integrity fell below 50% 1066 | -8/Materials | Entered Factory 1066 | -7/Factory | Evolved 2 slots: Propulsion x1, Utility x1 1068 | -7/Factory | FarCom data flow suspended 1094 | -7/Factory | Lost 4 parts (2n2u) 1111 | -7/Factory | Garrison activated, responded to threat 1268 | -7/Factory | Identified exit to Lower Caves 1363 | -7/Factory | Local fabrication network quarantined 1394 | -7/Factory | Entered Lower Caves 1394 | -7/Lower Caves | Spotted O5-3QC(f) 1394 | -7/Lower Caves | Spotted SN-MPR(f) 1395 | -7/Lower Caves | Encountered a Master Thief 1395 | -7/Lower Caves | Encountered a Master Thief 1474 | -7/Lower Caves | Discovered new exit (range 9) 1475 | -7/Lower Caves | Identified exit to Lower Caves 1476 | -7/Lower Caves | Entered another Lower Caves area 1476 | -7/Lower Caves | Spotted NI-VU4(f) 1477 | -7/Lower Caves | Encountered a Master Thief 1526 | -7/Lower Caves | Ambushed by wild Derelicts 1529 | -7/Lower Caves | Learned Factory emergency access door positions 1538 | -7/Lower Caves | Discovered new exit (range 7) 1540 | -7/Lower Caves | Identified exit to Data Miner 1540 | -7/Lower Caves | Entered Data Miner 1540 | -7/Data Miner | Discovered new exit (range 6) 1547 | -7/Data Miner | Met Data Miner 1557 | -7/Data Miner | Received God Mode back door access code from Data Miner 1567 | -7/Data Miner | Activated Chronowheel 1584 | -7/Data Miner | Destroyed Data Miner 1587 | -7/Data Miner | Found Prototype Hackware 1587 | -7/Data Miner | Identified Deep Network Scanner 1590 | -7/Data Miner | Found Prototype Hackware 1590 | -7/Data Miner | Identified System Mapper 1591 | -7/Data Miner | Interfaced with the Data Conduit 1612 | -7/Data Miner | Identified exit to Proximity Caves 1612 | -7/Data Miner | Entered Proximity Caves 1617 | -6/Proximity Caves | Spotted B-75 Beast 1682 | -6/Proximity Caves | Lost 3 parts (1p1u1w) 1707 | -6/Proximity Caves | Discovered new exit (range 7) 1709 | -6/Proximity Caves | Identified exit to Factory 1709 | -6/Proximity Caves | Entered Factory 1709 | -6/Factory | Evolved 2 slots: Utility x2 1711 | -6/Factory | Loaded intel: 262 machine locations 1786 | -6/Factory | Build established: Hacker-Sprinter 1818 | -6/Factory | Identified exit to Lower Caves 1831 | -6/Factory | Fabricated Exp. Sensor Array? 1883 | -6/Factory | Central database locked down 1939 | -6/Factory | Fabricated Adv. Hacking Suite? 1964 | -6/Factory | Deep Network Scanner fried by hacking feedback 1972 | -6/Factory | Entered Lower Caves 1972 | -6/Lower Caves | Accompanied by 1 ally 1976 | -6/Lower Caves | A Derelict revealed a hidden shortcut to a safe place 1980 | -6/Lower Caves | Identified exit to Zion 2013 | -6/Lower Caves | Spotted B-75 Beast 2110 | -6/Lower Caves | Discovered new exit (range 6) 2116 | -6/Lower Caves | Found Alien Artifact 2116 | -6/Lower Caves | Identified Core Expander 2116 | -6/Lower Caves | Installed Core Expander, added new Propulsion slot 2120 | -6/Lower Caves | Identified exit to Lower Caves 2120 | -6/Lower Caves | Entered another Lower Caves area 2133 | -6/Lower Caves | Learned Factory machine intel 2259 | -6/Lower Caves | Spotted VS-JWZ(f) 2259 | -6/Lower Caves | Spotted P5-NS4(f) 2259 | -6/Lower Caves | Spotted D9-A2O(f) 2260 | -6/Lower Caves | Encountered a Master Thief 2260 | -6/Lower Caves | Encountered a Master Thief 2260 | -6/Lower Caves | Encountered a Master Thief 2261 | -6/Lower Caves | Spotted BB-PR9(f) 2262 | -6/Lower Caves | Encountered a Master Thief 2284 | -6/Lower Caves | Discovered exit to Zion (range 15) 2288 | -6/Lower Caves | Entered Zion 2311 | -6/Zion | Gained Derelict followers 2348 | -6/Zion | Given the Hacking Drone Bay 2634 | -6/Zion | Discovered new exit (range 3) 2634 | -6/Zion | Saw the warning signs outside the Deep Caves entrance 2644 | -6/Zion | Identified exit to Deep Caves 2648 | -6/Zion | Entered Deep Caves 2648 | -6/Deep Caves | Accompanied by 5 allies 2777 | -6/Deep Caves | Attacked by Z-Imprinter 2885 | -6/Deep Caves | Core integrity fell below 50% 2904 | -6/Deep Caves | Core integrity fell below 20% 2934 | -6/Deep Caves | Destroyed by Z-Imprinter with Zionite Laser-M Last Messages --------------- 02881_ Broken Cld. Airjet destroyed. 02881_ Dropped Zio. Light DM Reactor. 02887_ Adv. Hacking Suite destroyed. 02890_ Z-Imprinter knocked back. 02894_ Power Maul destroyed. 02896_ Acquired Zio. Light DM Reactor. 02903_ Imp. Proton Missile Launcher destroyed. 02903_ Broken Adv. Signal Interpreter destroyed. 02907_ Imp. Cesium-ion Thruster destroyed. 02912_ System Mapper destroyed. 02914_ Acquired Imp. Cooling System. 02916_ Acquired 29 matter. 02924_ Acquired Prototype Hover Unit. 02924_ Identified Zio. Glidesys I. 02925_ Acquired 10 matter. 02926_ Exp. Heat Sink destroyed. 02926_ Zio. Glidesys I destroyed. 02926_ Acquired Zio. Light DM Reactor. 02931_ Imp. Cooling System destroyed. 02931_ Broken Imp. Cesium-ion Thruster destroyed. Map ----- +----------------------------------------------------+ | #????????????????? #???????????????? | | #????????????????? #?? ????????????? | | ???????????????? ## ???????????? | | ???????????????# # ???????????? | | ?????????????## ???###?????? | | #??????????### #??## ##????? | | #?????????? #?### ##???? | | ##????????? #?## ##??? | | ########### #??# #??? | | #??# ###? | | #????# *"#? | | ####??????# =% #? | | #######%! ##?????????#" #? | | ###????#" #??????????## #?? | | ##??????# #??????????## % ##?? | | #???????# #?????????## #??? | | ##??????#" ##????????# #??? | | #???????#" ###??????# #??? | | #????????# ""#??????## #??? | | #????????## #???????#" ;#??? | | ##?????????# #######?## ;#??? | | ##?????????# #??# #??? | | #?????????# #?## #??? | | #?????????## ##?#;I #### | | ##??????????## ####; ;# | | #???????????# @ ## | | ????????????# ;# | | #???????????# #;; ;# | | #??????????# ## ### ;# | | #??????????# ## "## * ;## | | ##??????????#"%% # ## ## =%= ##? | | #???????????## # ## # ; | | #????????????# ### ## | | #???????????# ### ##? | | #???????????# #?## ##?? | | ????????????# ##??# #??? | | ?????????????####???## #??? | | ?????????????????????## #?? | | ??????????????????????## #?? | | ???????????????????????# ##?? | | ???????????????????????# ##??? | | ???????????????????????# ##???? | | ???????????????????????## ###????? | | ????????????????????????#####??????? | | ???????????????????????????????????? | | ???????????????????????????????????? | | | | | | | | | +----------------------------------------------------+ Best States ------------- Heat Dissipation 90 Energy Generation 27 Energy Capacity 280 Matter Stores 300 Matter Capacity 300 Sight Range 18 Robot Scan Range 30 Terrain Scan Density 10 Additional Mass Support 6 Armor Coverage 225 Resistance: EM 20 Propulsion Shielding 66 Reclamation Efficiency 15 Evasion (%) 74 Recoil Reduction 2 Offensive Hacking 59 Defensive Hacking 21 Item Schematics ----------------- Hcp. Storage Unit | -9/Mines | Hacked Med. Storage Unit | -7/Factory | Hacked Combat Drone Bay | -7/Data Miner | Free Lgt. Regenerative Plating | -7/Data Miner | Free Cmb. Gravmag System | -7/Data Miner | Free Exp. Cesium-ion Thruster | -7/Data Miner | Free Exp. Sensor Array | -7/Data Miner | Free Exp. Terrain Scanner | -7/Data Miner | Free Exp. Terrain Scan Processor | -7/Data Miner | Free Exp. Targeting Computer | -7/Data Miner | Free Mni. Smartbomb Launcher | -7/Data Miner | Free Exp. ECM Suite | -7/Data Miner | Free Plasma Sword | -7/Data Miner | Free Kinetic Spear | -7/Data Miner | Free Adv. Hacking Suite | -6/Factory | Hacked Imp. Maneuvering Thrusters | -6/Factory | Hacked Robot Schematics ------------------ S-27 Virus | -7/Data Miner | Free G-50 Soldier | -7/Data Miner | Free G-67 Veteran | -7/Data Miner | Free H-66 Slayer | -7/Data Miner | Free I-36 Angel | -7/Data Miner | Free Fabricated ------------ Exp. Sensor Array | x1 | -6/Factory Adv. Hacking Suite | x1 | -6/Factory Alien Tech Used ----------------- Core Expander Achievements -------------- None Challenges ------------ None Game ------ Seed ContainmentMyomerNetwork Manual? 0 Play Time 00:56:20 Cumulative 266.8 hours Start 2021.08.31 @ 20:09:36 End 2021.08.31 @ 21:05:34 Sessions 1 Manual Loads 0 Difficulty Rogue Special Mode None Game No. 190 Rogue 190 Adventurer 0 Explorer 0 Win Type - Total 5 Types 5/0/0/0/0/0/0/0/0 Lore% 51 Gallery% 73 Achievement% 58 Wizard Run 0 Options --------- ASCII 0 Keyboard 0 Movement Numpad Keybinds 0 Fullscreen 0 Font 16/SmallcapsGlow Map View 76x50 Tactical HUD 1 Map Filters NONE Filters NONE Steam 1 RUN: 646fd0c1-de7a-483d-8174-7b4b463f20b5